fUST/lending_fUST_20240323
["ID","MTS","AMOUNT","RATE_DAILY","PERIOD"]
[320103490,1711162247699,-500.0,0.00024931,2]
[320103492,1711162247709,-1428.79,0.00024931,2]
[320103494,1711162247718,-1413.6,0.00024931,2]
[320103496,1711162247727,-13381.94,0.00024931,2]
[320103498,1711162247736,-500.0,0.00024931,2]
[320103500,1711162247745,-500.0,0.00024931,2]
[320103502,1711162247754,-500.0,0.00024931,2]
[320103504,1711162247763,-500.0,0.00024931,2]
[320103506,1711162247772,-502.81180353,0.00024931,2]
[320103508,1711162247780,-1722.5,0.00024931,2]
[320103510,1711162247789,-500.0,0.00024931,2]
[320103512,1711162247798,-500.0,0.00024931,2]
[320103514,1711162247808,-504.39059708,0.00024931,2]
[320103516,1711162247817,-500.0,0.00024931,2]
[320103518,1711162247826,-502.83023385,0.00024931,2]
[320103520,1711162247835,-1197.81,0.00024931,2]
[320103522,1711162247844,-500.0,0.00024931,2]
[320103523,1711162247853,-500.0,0.00024931,2]
[320103526,1711162247865,-502.95126023,0.00024931,2]
[320103527,1711162247874,-502.61888165,0.00024931,2]
[320103529,1711162247884,-500.0,0.00024931,2]
[320103532,1711162247893,-151.0,0.00024931,2]
[320103533,1711162247903,-151.0,0.00024931,2]
[320103536,1711162247913,-151.0,0.00024931,2]
[320103538,1711162247922,-151.0,0.00024931,2]
[320103540,1711162247933,-151.0,0.00024931,2]
[320103541,1711162247943,-13754.74,0.00024931,2]
[320103543,1711162247953,-942.58,0.00024931,2]
[320103545,1711162247962,-151.0,0.00024931,2]
[320103548,1711162247972,-151.0,0.00024931,2]
[320103549,1711162247982,-151.0,0.00024931,2]
[320103551,1711162247994,-231.213486,0.00024931,2]
[320103553,1711162248007,-660.19,0.00024931,2]
[320103555,1711162248017,-503.61511725,0.00024931,2]
[320103558,1711162248026,-503.58839853,0.00024931,2]
[320103559,1711162248037,-500.0,0.00024931,2]
[320103561,1711162248046,-1332.11,0.00024931,2]
[320103563,1711162248055,-2523.26,0.00024931,2]
[320103565,1711162248064,-500.0,0.00024931,2]
[320103567,1711162248073,-244.58825964,0.00024931,2]
[320103569,1711162248083,-14852.95,0.00024931,2]
[320103571,1711162248092,-500.0,0.00024931,2]
[320103573,1711162248101,-503.34645082,0.00024931,2]
[320103575,1711162248111,-500.0,0.00024931,2]
[320103577,1711162248120,-507.08744962,0.00024931,2]
[320103579,1711162248130,-3238.36,0.00024931,2]
[320103581,1711162248139,-1019.24,0.00024931,2]
[320103582,1711162248150,-702.03,0.00024931,2]
[320103585,1711162248160,-500.0,0.00024931,2]
[320103586,1711162248169,-18239.2,0.00024931,2]
[320103588,1711162248178,-500.0,0.00024931,2]
[320103590,1711162248188,-502.87542545,0.00024931,2]
[320103592,1711162248197,-500.0,0.00024931,2]
[320103594,1711162248207,-6030.68,0.00024931,2]
[320103596,1711162248216,-1082.18,0.00024931,2]
[320103598,1711162248226,-601.26782373,0.00024931,2]
[320103600,1711162248235,-578.07,0.00024931,2]
[320103602,1711162248244,-500.0,0.00024931,2]
[320103605,1711162248254,-1024.18,0.00024931,2]
[320103606,1711162248263,-500.0,0.00024931,2]
[320103608,1711162248272,-3401.1,0.00024931,2]
[320103610,1711162248281,-2815.64,0.00024931,2]
[320103612,1711162248290,-500.0,0.00024931,2]
[320103614,1711162248299,-500.0,0.00024931,2]
[320103616,1711162248308,-155.02799643,0.00025,2]
[320103618,1711162248318,-1538.03827663,0.00025,2]
[320103619,1711162248327,-153.0,0.00025,2]
[320103620,1711162248336,-153.0,0.00025,2]
[320103621,1711162248345,-153.0,0.00025,2]
[320103622,1711162248355,-306.2103796,0.00025,2]
[320103623,1711162248366,-153.0,0.00025,2]
[320103624,1711162248376,-153.9705115,0.00025,2]
[320103625,1711162248385,-153.0,0.00025,2]
[320103626,1711162248394,-153.0,0.00025,2]
[320103627,1711162248403,-153.0,0.00025,2]
[320103628,1711162248413,-153.0,0.00025,2]
[320103629,1711162248422,-153.0,0.00025,2]
[320103630,1711162248431,-153.0,0.00025,2]
[320103631,1711162248440,-153.0,0.00025,2]
[320103632,1711162248450,-153.0,0.00025,2]
[320103633,1711162248459,-153.0,0.00025,2]
[320103634,1711162248468,-153.0,0.00025,2]
[320103635,1711162248477,-153.0,0.00025,2]
[320103636,1711162248486,-153.0,0.00025,2]
[320103637,1711162248496,-153.0,0.00025,2]
[320103638,1711162248507,-153.0,0.00025,2]
[320103639,1711162248516,-153.0,0.00025,2]
[320103640,1711162248525,-307.186253,0.00025,2]
[320103641,1711162248536,-153.9758969,0.00025,2]
[320103642,1711162248547,-153.0,0.00025,2]
[320103643,1711162248556,-153.0,0.00025,2]
[320103644,1711162248566,-153.0,0.00025,2]
[320103645,1711162248576,-153.0,0.00025,2]
[320103646,1711162248587,-153.0,0.00025,2]
[320103647,1711162248597,-153.0,0.00025,2]
[320103648,1711162248607,-153.0,0.00025,2]
[320103649,1711162248619,-153.9954108,0.00025,2]
[320103650,1711162248629,-153.0,0.00025,2]
[320103651,1711162248638,-306.0,0.00025,2]
[320103652,1711162248647,-449.2283025,0.00025,2]
[320103653,1711162248656,-153.0,0.00025,2]
[320103654,1711162248667,-1046.8095561,0.00025,30]
[320103655,1711162248676,-153.0,0.00025,2]
[320103656,1711162248685,-153.0,0.00025,2]
[320103657,1711162248695,-153.0,0.00025,2]
[320103658,1711162248704,-153.0,0.00025,2]
[320103659,1711162248715,-153.0,0.00025,2]
[320103660,1711162248724,-1500.0,0.00025105,2]
[320103661,1711162248733,-168.59670513,0.00025105,2]
[320103662,1711162248743,-400.0,0.000252,2]
[320103663,1711162248752,-153.0,0.000252,2]
[320103664,1711162248762,-153.0,0.000252,2]
[320103665,1711162248771,-494.35243246,0.00025204,2]
[320103666,1711162248781,-161.830357,0.00025204,2]
[320103667,1711162248790,-170.58329211,0.00025205,7]
[320103668,1711162248799,-155.00682734,0.00025205,2]
[320103669,1711162248809,-155.13803431,0.00025205,2]
[320103670,1711162248820,-154.97295462,0.00025205,2]
[320103671,1711162248829,-690.23284981,0.00025205,2]
[320103672,1711162248839,-500.0,0.00025205,2]
[320103673,1711162248848,-500.0,0.00025205,2]
[320103674,1711162248857,-500.0,0.00025205,2]
[320103675,1711162248868,-500.0,0.00025205,2]
[320103676,1711162248877,-500.0,0.00025205,2]
[320103677,1711162248887,-500.0,0.00025205,2]
[320103678,1711162248896,-520.26,0.00025205,2]
[320103679,1711162248907,-833.48,0.00025205,2]
[320103680,1711162248916,-500.0,0.00025205,2]
[320103681,1711162248925,-438.82335983,0.00025205,2]
[320103682,1711162248935,-500.0,0.00025205,2]
[320103683,1711162248944,-558.84,0.00025205,2]
[320103684,1711162248953,-737.67,0.00025205,2]
[320103685,1711162248962,-500.0,0.00025205,2]
[320103686,1711162248971,-1868.29,0.00025205,2]
[320103687,1711162248981,-500.0,0.00025205,2]
[320103688,1711162248990,-502.8079371,0.00025205,2]
[320103689,1711162249003,-500.0,0.00025205,2]
[320103690,1711162249012,-500.0,0.00025205,2]
[320103691,1711162249021,-585.01,0.00025205,2]
[320103692,1711162249030,-500.0,0.00025205,2]
[320103693,1711162249040,-678.88,0.00025205,2]
[320103694,1711162249049,-204.26243948,0.00025205,2]
[320103695,1711162249058,-500.0,0.00025205,2]
[320103696,1711162249068,-500.0,0.00025205,2]
[320103697,1711162249078,-1040.94,0.00025205,2]
[320103698,1711162249087,-500.0,0.00025205,2]
[320103699,1711162249096,-431.95955234,0.00025205,2]
[320103700,1711162249106,-500.0,0.00025205,2]
[320103701,1711162249117,-500.0,0.00025205,2]
[320103702,1711162249126,-1272.35,0.00025205,2]
[320103703,1711162249135,-1230.83,0.00025205,2]
[320103704,1711162249144,-500.0,0.00025205,2]
[320103705,1711162249153,-500.0,0.00025205,2]
[320103706,1711162249163,-2044.55,0.00025205,2]
[320103707,1711162249173,-685.91,0.00025205,2]
[320103708,1711162249183,-2787.1,0.00025205,2]
[320103709,1711162249193,-960.72,0.00025205,2]
[320103711,1711162249203,-527.83,0.00025205,2]
[320103712,1711162249213,-502.65463011,0.00025205,2]
[320103713,1711162249223,-1428.79,0.00025205,2]
[320103714,1711162249232,-1413.6,0.00025205,2]
[320103715,1711162249241,-13381.94,0.00025205,2]
[320103716,1711162249250,-502.74859787,0.00025205,2]
[320103717,1711162249259,-500.0,0.00025205,2]
[320103718,1711162249268,-500.0,0.00025205,2]
[320103719,1711162249277,-500.0,0.00025205,2]
[320103720,1711162249286,-1722.5,0.00025205,2]
[320103721,1711162249295,-457.86256311,0.00025205,2]
[320103722,1711162249304,-500.0,0.00025205,2]
[320103723,1711162249313,-500.0,0.00025205,2]
[320103724,1711162249321,-1020.67280943,0.00025205,2]
[320103728,1711162249564,154.95351395,0.00019725,2]
[320103780,1711162268001,154.95351395,0.00020162,2]
[320103781,1711162283746,383.93915439,0.00019725,2]
[320103782,1711162285972,154.95351395,0.00020162,2]
[320103785,1711162301753,383.93915439,0.00019725,2]
[320103786,1711162305991,154.95351395,0.00020162,2]
[320103787,1711162319756,170.22838396,0.00019725,2]
[320103788,1711162323973,225.90684143,0.00019943,2]
[320103790,1711162476231,800.02180134,0.0002543,120]
[320103871,1711163438388,-500.0,0.00023524,2]
[320104484,1711163447042,-3602.86513519,0.00023524,2]
[320104485,1711163447053,-24890.0,0.00023624,2]
[320104486,1711163447062,-168.59670513,0.00024557,2]
[320104487,1711163447072,-8220.78893029,0.0002463,2]
[320104488,1711163447082,-200.37734336,0.00024654,2]
[320104489,1711163447091,-2206.97545425,0.00024655,2]
[320104523,1711164128469,1005.83096879,2.541e-05,30]
[320107988,1711164642554,-188.42540537,0.00023622,2]
[320107989,1711164642564,-192.87914367,0.00023623,2]
[320107990,1711164642574,-155.67264423,0.00023623,2]
[320107991,1711164642583,-500.56638896,0.00024,2]
[320107992,1711164642594,-516.0,0.00024,7]
[320107993,1711164642605,-320.58044476,0.00024654,2]
[320107994,1711164642615,-19909.38212864,0.00024655,2]
[320107997,1711164643570,-2880.66114387,0.00024655,2]
[320108007,1711164646619,-11494.75813097,0.00024655,2]
[320108008,1711164646629,-500.0,0.00024657,2]
[320108009,1711164646638,-500.0,0.00024657,2]
[320108010,1711164646648,-500.0,0.00024657,2]
[320108011,1711164646658,-500.0,0.00024657,2]
[320108012,1711164646668,-502.42909962,0.00024657,2]
[320108013,1711164646679,-502.00744158,0.00024657,2]
[320108014,1711164646688,-501.30125871,0.00024657,2]
[320108015,1711164646698,-500.0,0.00024657,2]
[320108016,1711164646708,-262.2552546,0.00024657,2]
[320108017,1711164646716,-1634.75,0.00024657,2]
[320108018,1711164646726,-501.72538335,0.00024657,2]
[320108019,1711164646735,-500.0,0.00024657,2]
[320108020,1711164646747,-500.0,0.00024657,2]
[320108021,1711164646757,-277.97041588,0.00024657,2]
[320108022,1711164646768,-500.0,0.00024657,2]
[320108023,1711164646777,-500.0,0.00024657,2]
[320108024,1711164646786,-500.0,0.00024657,2]
[320108025,1711164646795,-479.61545931,0.00024657,2]
[320108026,1711164646805,-500.0,0.00024657,2]
[320108027,1711164646817,-500.0,0.00024657,2]
[320108028,1711164646826,-500.0,0.00024657,2]
[320108029,1711164646835,-500.0,0.00024657,2]
[320108030,1711164646845,-1039.9543697,0.00024657,2]
[320108031,1711164646858,-73.3456303,0.00024657,2]
[320108032,1711164646869,-503.69237913,0.00024657,2]
[320108033,1711164646878,-1076.98,0.00024657,2]
[320108034,1711164646887,-179.24018635,0.00024657,2]
[320108035,1711164646896,-500.0,0.00024657,2]
[320108036,1711164646905,-500.0,0.00024657,2]
[320108037,1711164646915,-500.0,0.00024657,2]
[320108038,1711164646925,-500.0,0.00024657,2]
[320108039,1711164646935,-269.59153309,0.00024657,2]
[320108042,1711164685551,313.08414454,5e-05,2]
[320108191,1711165838770,-160.0,0.00022992,3]
[320108192,1711165838780,-160.0,0.00023655,4]
[320108193,1711165838789,-832.84864761,0.00024,2]
[320108772,1711167043051,-3263.0,0.000234,2]
[320108773,1711167043061,-4167.15135239,0.00024,2]
[320108774,1711167043070,-7977.81822228,0.00024,2]
[320108775,1711167043079,-5012.4270471,0.00024,2]
[320108776,1711167043088,-160.0,0.00024317,5]
[320108777,1711167043097,-51113.70913677,0.000246,7]
[320109211,1711168232162,-683.677196,0.00024108,2]
[320109213,1711168232171,-683.677196,0.00024109,2]
[320109215,1711168232180,-48089.47281934,0.000246,7]
[320109217,1711168232189,-400.0,0.000246,2]
[320109219,1711168232198,-158.49365785,0.00024655,2]
[320109221,1711168232207,-2114.98463376,0.00024655,2]
[320109223,1711168232216,-212.67245359,0.00024655,2]
[320109225,1711168232225,-155.50642795,0.00024655,2]
[320109227,1711168232234,-787.93518183,0.00024655,2]
[320109229,1711168232243,-187.5384845,0.00024655,2]
[320109231,1711168232253,-304.34308928,0.00024655,2]
[320109233,1711168232262,-1219.1181017,0.00024656,2]
[320109235,1711168232270,-1572.84687336,0.00024656,2]
[320109237,1711168232279,-168.69406774,0.00024657,2]
[320109238,1711168232288,-558.73367308,0.00024657,2]
[320109239,1711168232298,-501.88000513,0.00024657,2]
[320109241,1711168232307,-500.0,0.00024657,2]
[320109243,1711168232316,-500.0,0.00024657,2]
[320109245,1711168232325,-322.24676841,0.00024657,2]
[320109247,1711168232335,-500.0,0.00024657,2]
[320109249,1711168232344,-500.0,0.00024657,2]
[320109251,1711168232353,-500.0,0.00024657,2]
[320109253,1711168232362,-500.0,0.00024657,2]
[320109255,1711168232371,-500.0,0.00024657,2]
[320109257,1711168232382,-500.0,0.00024657,2]
[320109259,1711168232391,-1566.64,0.00024657,2]
[320109261,1711168232400,-502.18802314,0.00024657,2]
[320109263,1711168232409,-500.0,0.00024657,2]
[320109265,1711168232418,-500.0,0.00024657,2]
[320109266,1711168232426,-500.0,0.00024657,2]
[320109268,1711168232435,-500.0,0.00024657,2]
[320109270,1711168232444,-500.0,0.00024657,2]
[320109272,1711168232453,-151.0,0.00024657,2]
[320109274,1711168232463,-500.0,0.00024657,2]
[320109276,1711168232472,-501.61938209,0.00024657,2]
[320109278,1711168232481,-500.0,0.00024657,2]
[320109280,1711168232491,-500.0,0.00024657,2]
[320109282,1711168232500,-500.0,0.00024657,2]
[320109284,1711168232510,-500.0,0.00024657,2]
[320109286,1711168232519,-1066.91,0.00024657,2]
[320109288,1711168232528,-1032.1,0.00024657,2]
[320109290,1711168232536,-500.0,0.00024657,2]
[320109292,1711168232545,-517.79070528,0.00024657,2]
[320109294,1711168232554,-500.0,0.00024657,2]
[320109296,1711168232565,-2739.3,0.00024657,2]
[320109298,1711168232574,-500.0,0.00024657,2]
[320109299,1711168232583,-500.0,0.00024657,2]
[320109301,1711168232592,-500.0,0.00024657,2]
[320109303,1711168232601,-500.0,0.00024657,2]
[320109305,1711168232610,-930.2,0.00024657,2]
[320109307,1711168232619,-511.88,0.00024657,2]
[320109309,1711168232629,-3192.13,0.00024657,2]
[320109311,1711168232639,-910.83,0.00024657,2]
[320109313,1711168232649,-5844.61,0.00024657,2]
[320109315,1711168232658,-594.02,0.00024657,2]
[320109317,1711168232667,-500.0,0.00024657,2]
[320109319,1711168232676,-1788.98,0.00024657,2]
[320109320,1711168232686,-644.89712825,0.00024657,2]
[320109322,1711168232696,-218.70317996,0.00024657,2]
[320110871,1711169438338,-816.11843418,0.00022213,2]
[320110872,1711169438348,-816.11843418,0.00022214,2]
[320110873,1711169438358,-24717.2690988,0.00023112,2]
[320110874,1711169438367,-322.91920539,0.00023364,2]
[320110875,1711169438377,-758.74721881,0.000236,2]
[320110876,1711169438386,-1917.89642973,0.00023601,2]
[320110877,1711169438395,-160.20073853,0.00024378,2]
[320110878,1711169438405,-153.0,0.000244,2]
[320110879,1711169438414,-153.0,0.000244,2]
[320110880,1711169438424,-153.0,0.000244,2]
[320110881,1711169438434,-442.2649314,0.000244,2]
[320110882,1711169438444,-153.0,0.000244,2]
[320110883,1711169438454,-153.0,0.000244,2]
[320110884,1711169438465,-153.0,0.000244,2]
[320110885,1711169438476,-153.0,0.000244,2]
[320110886,1711169438486,-153.0,0.000244,2]
[320110887,1711169438496,-153.0,0.000244,2]
[320110888,1711169438506,-153.0,0.000244,2]
[320110889,1711169438515,-337.6090244,0.000244,2]
[320110890,1711169438537,-1555.84786187,0.00024407,2]
[320110891,1711169438546,-504.66109974,0.00024408,2]
[320110892,1711169438556,-229.76216591,0.00024408,2]
[320110893,1711169438566,-154.09564693,0.00024408,2]
[320110894,1711169438575,-355.35201579,0.00024408,2]
[320110895,1711169438585,-322.15394543,0.00024409,2]
[320110896,1711169438594,-215.54602816,0.00024409,2]
[320110897,1711169438604,-95689.32889452,0.00024409,2]
[320110898,1711169438614,-153.0,0.00024478,2]
[320110899,1711169438624,-153.0,0.00024478,2]
[320110900,1711169438814,-318.8425942,0.00024478,2]
[320110901,1711169438824,-306.4182217,0.00024478,2]
[320110902,1711169438834,-153.0,0.00024478,2]
[320110903,1711169438843,-153.0,0.000245,2]
[320110904,1711169438852,-160.2007385,0.0002456,2]
[320110905,1711169438861,-400.0,0.000246,2]
[320110906,1711169438870,-153.0,0.000246,2]
[320110907,1711169438880,-500.0,0.00024657,2]
[320110908,1711169438889,-500.0,0.00024657,2]
[320110909,1711169438898,-500.0,0.00024657,2]
[320110910,1711169438907,-500.0,0.00024657,2]
[320110911,1711169438916,-500.0,0.00024657,2]
[320110912,1711169438926,-502.58108259,0.00024657,2]
[320110913,1711169438935,-500.0,0.00024657,2]
[320110914,1711169438944,-500.0,0.00024657,2]
[320110915,1711169438953,-500.0,0.00024657,2]
[320110916,1711169438962,-500.0,0.00024657,2]
[320110917,1711169438971,-1501.36,0.00024657,2]
[320110918,1711169438980,-500.0,0.00024657,2]
[320110919,1711169438989,-569.27,0.00024657,2]
[320110920,1711169438999,-219.79379863,0.00024657,2]
[320110921,1711169439008,-872.87,0.00024657,2]
[320110922,1711169439017,-500.0,0.00024657,2]
[320110923,1711169439026,-500.0,0.00024657,2]
[320110924,1711169439035,-1022.46,0.00024657,2]
[320110925,1711169439044,-500.0,0.00024657,2]
[320110926,1711169439054,-989.1,0.00024657,2]
[320110927,1711169439063,-500.0,0.00024657,2]
[320110928,1711169439072,-500.0,0.00024657,2]
[320110929,1711169439082,-500.0,0.00024657,2]
[320110930,1711169439091,-500.0,0.00024657,2]
[320110931,1711169439100,-891.44,0.00024657,2]
[320110932,1711169439109,-500.0,0.00024657,2]
[320110933,1711169439118,-500.0,0.00024657,2]
[320110934,1711169439127,-500.0,0.00024657,2]
[320110935,1711169439137,-1714.44,0.00024657,2]
[320110936,1711169439150,-500.0,0.00024657,2]
[320110937,1711169439159,-500.0,0.00024657,2]
[320110938,1711169439169,-500.0,0.00024657,2]
[320110939,1711169439179,-2490.584925,0.00024657,2]
[320110940,1711169439188,-2490.584925,0.00024657,2]
[320110941,1711169439197,-2490.584925,0.00024657,2]
[320110942,1711169439206,-500.0,0.00024657,2]
[320110943,1711169439216,-2490.584925,0.00024657,2]
[320110944,1711169439227,-2490.584925,0.00024657,2]
[320110945,1711169439237,-2490.584925,0.00024657,2]
[320110946,1711169439248,-2490.584925,0.00024657,2]
[320110947,1711169439257,-2490.584925,0.00024657,2]
[320110948,1711169439266,-2490.584925,0.00024657,2]
[320110949,1711169439277,-2490.584925,0.00024657,2]
[320110950,1711169439286,-2490.584925,0.00024657,2]
[320110951,1711169439296,-2490.584925,0.00024657,2]
[320110952,1711169439307,-2490.584925,0.00024657,2]
[320110953,1711169439318,-2490.584925,0.00024657,2]
[320110954,1711169439327,-2490.584925,0.00024657,2]
[320110955,1711169439337,-2490.584925,0.00024657,2]
[320110956,1711169439346,-2490.584925,0.00024657,2]
[320110957,1711169439355,-2490.584925,0.00024657,2]
[320110958,1711169439365,-2490.584925,0.00024657,2]
[320110959,1711169439375,-2490.584927,0.00024657,2]
[320110960,1711169439384,-12261.88,0.00024657,2]
[320110961,1711169439394,-943.13,0.00024657,2]
[320110962,1711169439404,-500.0,0.00024657,2]
[320110963,1711169439414,-500.0,0.00024657,2]
[320110964,1711169439423,-1114.01,0.00024657,2]
[320110965,1711169439435,-2438.72,0.00024657,2]
[320110966,1711169439444,-1250.19,0.00024657,2]
[320110967,1711169439453,-1295.11,0.00024657,2]
[320110968,1711169439463,-500.0,0.00024657,2]
[320110969,1711169439473,-500.0,0.00024657,2]
[320110970,1711169439483,-500.0,0.00024657,2]
[320110971,1711169439493,-1606.77,0.00024657,2]
[320110972,1711169439503,-151.0,0.00024657,2]
[320110973,1711169439512,-151.0,0.00024657,2]
[320110974,1711169439521,-13968.96,0.00024657,2]
[320110975,1711169439531,-997.38,0.00024657,2]
[320110976,1711169439540,-500.0,0.00024657,2]
[320110977,1711169439549,-500.0,0.00024657,2]
[320110978,1711169439559,-500.0,0.00024657,2]
[320110979,1711169439568,-500.0,0.00024657,2]
[320110980,1711169439578,-500.0,0.00024657,2]
[320110981,1711169439587,-14290.92,0.00024657,2]
[320110982,1711169439596,-500.0,0.00024657,2]
[320110983,1711169439607,-669.5,0.00024657,2]
[320110984,1711169439616,-500.0,0.00024657,2]
[320110985,1711169439626,-500.0,0.00024657,2]
[320110986,1711169439635,-1283.33,0.00024657,2]
[320110987,1711169439644,-643.53,0.00024657,2]
[320110988,1711169439654,-3141.4,0.00024657,2]
[320110989,1711169439663,-500.0,0.00024657,2]
[320110990,1711169439672,-91.55388989,0.00024657,2]
[320110991,1711169439687,-2453.13611011,0.00024657,2]
[320110992,1711169439696,-529.9,0.00024657,2]
[320110993,1711169439705,-500.0,0.00024657,2]
[320110994,1711169439714,-309.7344778,0.00024657,2]
[320110995,1711169439723,-938.83,0.00024657,2]
[320110996,1711169439732,-500.0,0.00024657,2]
[320110997,1711169439741,-500.0,0.00024657,2]
[320110998,1711169439751,-500.0,0.00024657,2]
[320110999,1711169439759,-729.29,0.00024657,2]
[320111000,1711169439768,-18289.78,0.00024657,2]
[320111001,1711169439778,-500.0,0.00024657,2]
[320111002,1711169439787,-500.0,0.00024657,2]
[320111003,1711169439796,-988.92,0.00024657,2]
[320111004,1711169439805,-645.46,0.00024657,2]
[320111005,1711169439814,-981.89,0.00024657,2]
[320111006,1711169439823,-341.72679995,0.00024657,2]
[320111007,1711169439832,-1384.07203754,0.00024657,2]
[320111193,1711169448000,-35760.87671333,0.0002441,2]
[320111194,1711169448010,-1241.08796246,0.00024657,2]
[320111195,1711169448019,-500.0,0.00024657,2]
[320111196,1711169448028,-1054.65,0.00024657,2]
[320111197,1711169448037,-502.90991338,0.00024657,2]
[320111198,1711169448048,-5601.09,0.00024657,2]
[320111199,1711169448058,-500.0,0.00024657,2]
[320111200,1711169448067,-500.0,0.00024657,2]
[320111201,1711169448077,-153.0,0.000247,2]
[320111202,1711169448087,-153.0,0.000247,2]
[320111203,1711169448099,-306.0,0.000247,2]
[320111204,1711169448112,-160.2007385,0.00024742,2]
[320111205,1711169448123,-153.0,0.00024822,2]
[320111206,1711169448136,-153.0,0.00024822,2]
[320111207,1711169448148,-153.0,0.00024822,2]
[320111208,1711169448157,-153.0,0.00024822,2]
[320111209,1711169448167,-160.2007385,0.00024923,2]
[320111210,1711169448178,-500.0,0.00024931,2]
[320111211,1711169448187,-500.0,0.00024931,2]
[320111212,1711169448198,-500.0,0.00024931,2]
[320111213,1711169448210,-500.0,0.00024931,2]
[320111214,1711169448224,-500.0,0.00024931,2]
[320111215,1711169448236,-444.47022136,0.00024931,2]
[320111216,1711169448249,-500.0,0.00024931,2]
[320111217,1711169448260,-500.0,0.00024931,2]
[320111218,1711169448271,-1501.36,0.00024931,2]
[320111219,1711169448282,-500.0,0.00024931,2]
[320111220,1711169448293,-569.27,0.00024931,2]
[320111221,1711169448303,-148.73371247,0.00024931,2]
[320111287,1711170638510,-35760.87671333,0.00022752,2]
[320111288,1711170638524,-397.55163141,0.00024557,2]
[320111289,1711170638533,-160.2007385,0.00024557,2]
[320111290,1711170638543,-178.4570254,0.00024655,2]
[320111291,1711170638554,-469.3205459,0.00024655,2]
[320111292,1711170638576,-458.62554354,0.00024655,2]
[320111293,1711170638588,-884.15253254,0.00024655,2]
[320111294,1711170638773,-500.0,0.00024656,2]
[320111295,1711170638783,-457.47715458,0.00024656,2]
[320111296,1711170638793,-472.77730589,0.00024656,2]
[320111297,1711170638802,-416.90455966,0.00024656,2]
[320111298,1711170638812,-500.0,0.00024657,2]
[320111299,1711170638821,-500.0,0.00024657,2]
[320111300,1711170638831,-545.55,0.00024657,2]
[320111301,1711170638841,-866.68,0.00024657,2]
[320111302,1711170638850,-500.0,0.00024657,2]
[320111303,1711170638859,-502.58108259,0.00024657,2]
[320111304,1711170638869,-500.0,0.00024657,2]
[320111305,1711170638879,-500.0,0.00024657,2]
[320111306,1711170638888,-1438.81,0.00024657,2]
[320111307,1711170638897,-500.0,0.00024657,2]
[320111308,1711170638907,-500.0,0.00024657,2]
[320111309,1711170638916,-500.0,0.00024657,2]
[320111310,1711170638926,-500.0,0.00024657,2]
[320111311,1711170638936,-219.79379863,0.00024657,2]
[320111312,1711170638945,-500.0,0.00024657,2]
[320111313,1711170638955,-500.0,0.00024657,2]
[320111314,1711170638965,-500.0,0.00024657,2]
[320111315,1711170638975,-1022.46,0.00024657,2]
[320111316,1711170638984,-989.1,0.00024657,2]
[320111317,1711170638995,-500.0,0.00024657,2]
[320111318,1711170639006,-500.0,0.00024657,2]
[320111319,1711170639015,-500.0,0.00024657,2]
[320111320,1711170639024,-500.0,0.00024657,2]
[320111321,1711170639034,-500.0,0.00024657,2]
[320111322,1711170639043,-500.0,0.00024657,2]